{"text_format":"3","workbook":"xlsx","n_sheets":1,"sheets":["รายงานค่าใช้จ่าย"],"not_rendered":{"images":1,"defined_names":12},"read":"whole","date_system":"1900"}

{"sheet":"รายงานค่าใช้จ่าย","index":0,"n_rows":24,"n_cols":13,"rows_kept":24,"merged":[[3,2,3,3],[3,5,3,6],[3,9,3,10],[4,2,4,3],[4,5,4,6],[4,9,4,10],[5,2,5,3],[5,5,5,6],[5,9,5,10],[6,2,6,3],[6,5,6,6],[6,9,6,10],[7,9,7,10]]}
[null,"รายงานค่าใช้จ่าย"]
[null,"CONTOSO, LTD"]
[null,"123 ถนนเพลินจิต ลุมพินี ปทุมวัน กทม. 12345"]
[null,"โทรศัพท์",4255550121,null,"ชื่อ","ดวงรัตน์ สุพิทยาภรณ์",null,null,"วัตถุประสงค์:","สัมมนายอดขายรายปี",null,"อัตราระยะไมล์",{"v":0.5,"d":"฿0.50ไมล์"}]
[null,"โทรสาร",4255550122,null,"แผนก","ยอดขาย",null,null,"เริ่มต้น",{"$f":"IFERROR(MIN(ค่าใช้จ่าย[วันที่]),\"\")","v":"2018-06-12"},null,"อัตราค่าอาหาร",{"v":30,"d":"฿30.00วัน"}]
[null,"อีเมล","info@contoso.com",null,"ตำแหน่ง","ผู้อำนวยการฝ่ายการตลาด",null,null,"สิ้นสุด",{"$f":"IFERROR(MAX(ค่าใช้จ่าย[วันที่]),\"\")","v":"2018-07-12"},null,"อัตราค่าโรงแรม",{"v":200,"d":"฿200.00คืน"}]
[null,"เว็บ","www.contoso.com",null,"ผู้จัดการ","มโน ตันตยกุล",null,null,"จัดทำโดย","ดวงรัตน์ สุพิทยาภรณ์",null,"อัตราค่าโทรศัพท์",{"v":10,"d":"฿10.00วัน"}]
[{"$nulls":8},"อนุมัติโดย","มโน ตันตยกุล",null,"เบ็ดเตล็ด อัตรา",{"v":50,"d":"฿50.00วัน"}]
[]
[null,"วันที่","บัญชี","คำอธิบาย","โรงแรม","การเดินทาง","อาหาร","โทรศัพท์","เบ็ดเตล็ด","เครื่องวัดระยะทาง \nเริ่มต้น","เครื่องวัดระยะทาง \nสิ้นสุด","ระยะไมล์ \nผลรวม","ผลรวม "]
[null,{"$f":"TODAY()","v":"2018-06-12"},"ยอดขาย","ระยะไมล์",{"$nulls":4},{"v":50,"d":"฿50.00"},{"v":11378.5,"d":"11,378.5ไมล์"},{"v":11456.2,"d":"11,456.2ไมล์"},{"$f":"IF(COUNTA(ค่าใช้จ่าย[[#This Row],[เครื่องวัดระยะทาง \nเริ่มต้น]:[เครื่องวัดระยะทาง \nสิ้นสุด]])=2,(ค่าใช้จ่าย[[#This Row],[เครื่องวัดระยะทาง \nสิ้นสุด]]-ค่าใช้จ่าย[[#This Row],[เครื่องวัดระยะทาง \nเริ่มต้น]])*อัตราระยะทางสะสม,\"\")","v":{"v":38.850000000000364,"d":"฿38.85"}},{"$f":"IF(COUNTA(ค่าใช้จ่าย[[#This Row],[วันที่]:[เครื่องวัดระยะทาง \nสิ้นสุด]])=0,\"\",SUM(ค่าใช้จ่าย[[#This Row],[โรงแรม]:[การเดินทาง]],ค่าใช้จ่าย[[#This Row],[อาหาร]:[เบ็ดเตล็ด]],((ค่าใช้จ่าย[[#This Row],[เครื่องวัดระยะทาง \nสิ้นสุด]]-ค่าใช้จ่าย[[#This Row],[เครื่องวัดระยะทาง \nเริ่มต้น]])*(อัตราระยะทางสะสม))))","v":{"v":88.85000000000036,"d":"฿88.85"}}]
[null,{"$f":"TODAY()+30","v":"2018-07-12"},"ยอดขาย","ค่าธรรมเนียมการประชุม",{"v":445,"d":"฿445.00"},{"v":225,"d":"฿225.00"},{"v":20,"d":"฿20.00"},null,{"v":5,"d":"฿5.00"},{"v":11500,"d":"11,500.0ไมล์"},{"v":11560,"d":"11,560.0ไมล์"},{"$f":"IF(COUNTA(ค่าใช้จ่าย[[#This Row],[เครื่องวัดระยะทาง \nเริ่มต้น]:[เครื่องวัดระยะทาง \nสิ้นสุด]])=2,(ค่าใช้จ่าย[[#This Row],[เครื่องวัดระยะทาง \nสิ้นสุด]]-ค่าใช้จ่าย[[#This Row],[เครื่องวัดระยะทาง \nเริ่มต้น]])*อัตราระยะทางสะสม,\"\")","v":{"v":30,"d":"฿30.00"}},{"$f":"IF(COUNTA(ค่าใช้จ่าย[[#This Row],[วันที่]:[เครื่องวัดระยะทาง \nสิ้นสุด]])=0,\"\",SUM(ค่าใช้จ่าย[[#This Row],[โรงแรม]:[การเดินทาง]],ค่าใช้จ่าย[[#This Row],[อาหาร]:[เบ็ดเตล็ด]],((ค่าใช้จ่าย[[#This Row],[เครื่องวัดระยะทาง \nสิ้นสุด]]-ค่าใช้จ่าย[[#This Row],[เครื่องวัดระยะทาง \nเริ่มต้น]])*(อัตราระยะทางสะสม))))","v":{"v":725,"d":"฿725.00"}}]
[{"$nulls":11},{"$f":"IF(COUNTA(ค่าใช้จ่าย[[#This Row],[เครื่องวัดระยะทาง \nเริ่มต้น]:[เครื่องวัดระยะทาง \nสิ้นสุด]])=2,(ค่าใช้จ่าย[[#This Row],[เครื่องวัดระยะทาง \nสิ้นสุด]]-ค่าใช้จ่าย[[#This Row],[เครื่องวัดระยะทาง \nเริ่มต้น]])*อัตราระยะทางสะสม,\"\")","v":""},{"$f":"IF(COUNTA(ค่าใช้จ่าย[[#This Row],[วันที่]:[เครื่องวัดระยะทาง \nสิ้นสุด]])=0,\"\",SUM(ค่าใช้จ่าย[[#This Row],[โรงแรม]:[การเดินทาง]],ค่าใช้จ่าย[[#This Row],[อาหาร]:[เบ็ดเตล็ด]],((ค่าใช้จ่าย[[#This Row],[เครื่องวัดระยะทาง \nสิ้นสุด]]-ค่าใช้จ่าย[[#This Row],[เครื่องวัดระยะทาง \nเริ่มต้น]])*(อัตราระยะทางสะสม))))","v":""}]
[{"$nulls":11},{"$f":"IF(COUNTA(ค่าใช้จ่าย[[#This Row],[เครื่องวัดระยะทาง \nเริ่มต้น]:[เครื่องวัดระยะทาง \nสิ้นสุด]])=2,(ค่าใช้จ่าย[[#This Row],[เครื่องวัดระยะทาง \nสิ้นสุด]]-ค่าใช้จ่าย[[#This Row],[เครื่องวัดระยะทาง \nเริ่มต้น]])*อัตราระยะทางสะสม,\"\")","v":""},{"$f":"IF(COUNTA(ค่าใช้จ่าย[[#This Row],[วันที่]:[เครื่องวัดระยะทาง \nสิ้นสุด]])=0,\"\",SUM(ค่าใช้จ่าย[[#This Row],[โรงแรม]:[การเดินทาง]],ค่าใช้จ่าย[[#This Row],[อาหาร]:[เบ็ดเตล็ด]],((ค่าใช้จ่าย[[#This Row],[เครื่องวัดระยะทาง \nสิ้นสุด]]-ค่าใช้จ่าย[[#This Row],[เครื่องวัดระยะทาง \nเริ่มต้น]])*(อัตราระยะทางสะสม))))","v":""}]
[{"$nulls":11},{"$f":"IF(COUNTA(ค่าใช้จ่าย[[#This Row],[เครื่องวัดระยะทาง \nเริ่มต้น]:[เครื่องวัดระยะทาง \nสิ้นสุด]])=2,(ค่าใช้จ่าย[[#This Row],[เครื่องวัดระยะทาง \nสิ้นสุด]]-ค่าใช้จ่าย[[#This Row],[เครื่องวัดระยะทาง \nเริ่มต้น]])*อัตราระยะทางสะสม,\"\")","v":""},{"$f":"IF(COUNTA(ค่าใช้จ่าย[[#This Row],[วันที่]:[เครื่องวัดระยะทาง \nสิ้นสุด]])=0,\"\",SUM(ค่าใช้จ่าย[[#This Row],[โรงแรม]:[การเดินทาง]],ค่าใช้จ่าย[[#This Row],[อาหาร]:[เบ็ดเตล็ด]],((ค่าใช้จ่าย[[#This Row],[เครื่องวัดระยะทาง \nสิ้นสุด]]-ค่าใช้จ่าย[[#This Row],[เครื่องวัดระยะทาง \nเริ่มต้น]])*(อัตราระยะทางสะสม))))","v":""}]
[{"$nulls":11},{"$f":"IF(COUNTA(ค่าใช้จ่าย[[#This Row],[เครื่องวัดระยะทาง \nเริ่มต้น]:[เครื่องวัดระยะทาง \nสิ้นสุด]])=2,(ค่าใช้จ่าย[[#This Row],[เครื่องวัดระยะทาง \nสิ้นสุด]]-ค่าใช้จ่าย[[#This Row],[เครื่องวัดระยะทาง \nเริ่มต้น]])*อัตราระยะทางสะสม,\"\")","v":""},{"$f":"IF(COUNTA(ค่าใช้จ่าย[[#This Row],[วันที่]:[เครื่องวัดระยะทาง \nสิ้นสุด]])=0,\"\",SUM(ค่าใช้จ่าย[[#This Row],[โรงแรม]:[การเดินทาง]],ค่าใช้จ่าย[[#This Row],[อาหาร]:[เบ็ดเตล็ด]],((ค่าใช้จ่าย[[#This Row],[เครื่องวัดระยะทาง \nสิ้นสุด]]-ค่าใช้จ่าย[[#This Row],[เครื่องวัดระยะทาง \nเริ่มต้น]])*(อัตราระยะทางสะสม))))","v":""}]
[{"$nulls":11},{"$f":"IF(COUNTA(ค่าใช้จ่าย[[#This Row],[เครื่องวัดระยะทาง \nเริ่มต้น]:[เครื่องวัดระยะทาง \nสิ้นสุด]])=2,(ค่าใช้จ่าย[[#This Row],[เครื่องวัดระยะทาง \nสิ้นสุด]]-ค่าใช้จ่าย[[#This Row],[เครื่องวัดระยะทาง \nเริ่มต้น]])*อัตราระยะทางสะสม,\"\")","v":""},{"$f":"IF(COUNTA(ค่าใช้จ่าย[[#This Row],[วันที่]:[เครื่องวัดระยะทาง \nสิ้นสุด]])=0,\"\",SUM(ค่าใช้จ่าย[[#This Row],[โรงแรม]:[การเดินทาง]],ค่าใช้จ่าย[[#This Row],[อาหาร]:[เบ็ดเตล็ด]],((ค่าใช้จ่าย[[#This Row],[เครื่องวัดระยะทาง \nสิ้นสุด]]-ค่าใช้จ่าย[[#This Row],[เครื่องวัดระยะทาง \nเริ่มต้น]])*(อัตราระยะทางสะสม))))","v":""}]
[{"$nulls":11},{"$f":"IF(COUNTA(ค่าใช้จ่าย[[#This Row],[เครื่องวัดระยะทาง \nเริ่มต้น]:[เครื่องวัดระยะทาง \nสิ้นสุด]])=2,(ค่าใช้จ่าย[[#This Row],[เครื่องวัดระยะทาง \nสิ้นสุด]]-ค่าใช้จ่าย[[#This Row],[เครื่องวัดระยะทาง \nเริ่มต้น]])*อัตราระยะทางสะสม,\"\")","v":""},{"$f":"IF(COUNTA(ค่าใช้จ่าย[[#This Row],[วันที่]:[เครื่องวัดระยะทาง \nสิ้นสุด]])=0,\"\",SUM(ค่าใช้จ่าย[[#This Row],[โรงแรม]:[การเดินทาง]],ค่าใช้จ่าย[[#This Row],[อาหาร]:[เบ็ดเตล็ด]],((ค่าใช้จ่าย[[#This Row],[เครื่องวัดระยะทาง \nสิ้นสุด]]-ค่าใช้จ่าย[[#This Row],[เครื่องวัดระยะทาง \nเริ่มต้น]])*(อัตราระยะทางสะสม))))","v":""}]
[{"$nulls":11},{"$f":"IF(COUNTA(ค่าใช้จ่าย[[#This Row],[เครื่องวัดระยะทาง \nเริ่มต้น]:[เครื่องวัดระยะทาง \nสิ้นสุด]])=2,(ค่าใช้จ่าย[[#This Row],[เครื่องวัดระยะทาง \nสิ้นสุด]]-ค่าใช้จ่าย[[#This Row],[เครื่องวัดระยะทาง \nเริ่มต้น]])*อัตราระยะทางสะสม,\"\")","v":""},{"$f":"IF(COUNTA(ค่าใช้จ่าย[[#This Row],[วันที่]:[เครื่องวัดระยะทาง \nสิ้นสุด]])=0,\"\",SUM(ค่าใช้จ่าย[[#This Row],[โรงแรม]:[การเดินทาง]],ค่าใช้จ่าย[[#This Row],[อาหาร]:[เบ็ดเตล็ด]],((ค่าใช้จ่าย[[#This Row],[เครื่องวัดระยะทาง \nสิ้นสุด]]-ค่าใช้จ่าย[[#This Row],[เครื่องวัดระยะทาง \nเริ่มต้น]])*(อัตราระยะทางสะสม))))","v":""}]
[{"$nulls":11},{"$f":"IF(COUNTA(ค่าใช้จ่าย[[#This Row],[เครื่องวัดระยะทาง \nเริ่มต้น]:[เครื่องวัดระยะทาง \nสิ้นสุด]])=2,(ค่าใช้จ่าย[[#This Row],[เครื่องวัดระยะทาง \nสิ้นสุด]]-ค่าใช้จ่าย[[#This Row],[เครื่องวัดระยะทาง \nเริ่มต้น]])*อัตราระยะทางสะสม,\"\")","v":""},{"$f":"IF(COUNTA(ค่าใช้จ่าย[[#This Row],[วันที่]:[เครื่องวัดระยะทาง \nสิ้นสุด]])=0,\"\",SUM(ค่าใช้จ่าย[[#This Row],[โรงแรม]:[การเดินทาง]],ค่าใช้จ่าย[[#This Row],[อาหาร]:[เบ็ดเตล็ด]],((ค่าใช้จ่าย[[#This Row],[เครื่องวัดระยะทาง \nสิ้นสุด]]-ค่าใช้จ่าย[[#This Row],[เครื่องวัดระยะทาง \nเริ่มต้น]])*(อัตราระยะทางสะสม))))","v":""}]
[{"$nulls":11},{"$f":"IF(COUNTA(ค่าใช้จ่าย[[#This Row],[เครื่องวัดระยะทาง \nเริ่มต้น]:[เครื่องวัดระยะทาง \nสิ้นสุด]])=2,(ค่าใช้จ่าย[[#This Row],[เครื่องวัดระยะทาง \nสิ้นสุด]]-ค่าใช้จ่าย[[#This Row],[เครื่องวัดระยะทาง \nเริ่มต้น]])*อัตราระยะทางสะสม,\"\")","v":""},{"$f":"IF(COUNTA(ค่าใช้จ่าย[[#This Row],[วันที่]:[เครื่องวัดระยะทาง \nสิ้นสุด]])=0,\"\",SUM(ค่าใช้จ่าย[[#This Row],[โรงแรม]:[การเดินทาง]],ค่าใช้จ่าย[[#This Row],[อาหาร]:[เบ็ดเตล็ด]],((ค่าใช้จ่าย[[#This Row],[เครื่องวัดระยะทาง \nสิ้นสุด]]-ค่าใช้จ่าย[[#This Row],[เครื่องวัดระยะทาง \nเริ่มต้น]])*(อัตราระยะทางสะสม))))","v":""}]
[null,"ยอดรวม",null,null,{"$f":"SUBTOTAL(109,ค่าใช้จ่าย[โรงแรม])","v":{"v":445,"d":"฿445.00"}},{"$f":"SUBTOTAL(109,ค่าใช้จ่าย[การเดินทาง])","v":{"v":225,"d":"฿225.00"}},{"$f":"SUBTOTAL(109,ค่าใช้จ่าย[อาหาร])","v":{"v":20,"d":"฿20.00"}},{"$f":"SUBTOTAL(109,ค่าใช้จ่าย[โทรศัพท์])","v":0},{"$f":"SUBTOTAL(109,ค่าใช้จ่าย[เบ็ดเตล็ด])","v":{"v":55,"d":"฿55.00"}},{"$nulls":3},{"$f":"SUBTOTAL(109,ค่าใช้จ่าย[[ผลรวม ]])","v":{"v":813.8500000000004,"d":"฿813.85"}}]
[{"$nulls":11},"ล่วงหน้า",{"v":0,"d":"฿0.00"}]
[{"$nulls":11},"ผลรวม",{"$f":"ค่าใช้จ่าย[[#Totals],[ผลรวม ]]-ล่วงหน้า","v":{"v":813.8500000000004,"d":"฿813.85"}}]